fUST/lending_fUST_20250814
["ID","MTS","AMOUNT","RATE_DAILY","PERIOD"]
[379181731,1755179446377,-460.0,0.00016712,2]
[379181733,1755179446387,-460.0,0.00016712,2]
[379181735,1755179446396,-463.17241273,0.00016712,2]
[379181737,1755179446405,-1326.43,0.00016712,2]
[379181739,1755179446415,-460.0,0.00016712,2]
[379181741,1755179446424,-460.0,0.00016712,2]
[379181743,1755179446433,-460.0,0.00016712,2]
[379181745,1755179446443,-460.0,0.00016712,2]
[379181747,1755179446452,-858.48,0.00016712,2]
[379181749,1755179446462,-2349.9,0.00016712,2]
[379181751,1755179446471,-460.0,0.00016712,2]
[379181753,1755179446481,-1153.66,0.00016712,2]
[379181755,1755179446490,-460.0,0.00016712,2]
[379181757,1755179446500,-460.0,0.00016712,2]
[379181759,1755179446509,-460.0,0.00016712,2]
[379181761,1755179446519,-460.0,0.00016712,2]
[379181763,1755179446528,-460.0,0.00016712,2]
[379181765,1755179446537,-1069.76,0.00016712,2]
[379181767,1755179446548,-585.36,0.00016712,2]
[379181769,1755179446558,-984.58,0.00016712,2]
[379181771,1755179446568,-460.0,0.00016712,2]
[379181773,1755179446577,-460.0,0.00016712,2]
[379181775,1755179446587,-460.0,0.00016712,2]
[379181777,1755179446596,-460.0,0.00016712,2]
[379181779,1755179446605,-460.0,0.00016712,2]
[379181781,1755179446614,-460.0,0.00016712,2]
[379181783,1755179446623,-881.59,0.00016712,2]
[379181785,1755179446633,-1138.35,0.00016712,2]
[379181787,1755179446642,-460.0,0.00016712,2]
[379181789,1755179446653,-813.73,0.00016712,2]
[379181791,1755179446663,-460.0,0.00016712,2]
[379181793,1755179446672,-501.54843135,0.00016773,2]
[379181795,1755179446682,-500.26391624,0.00016773,2]
[379181797,1755179446691,-238.39935909,0.00016773,2]
[379181799,1755179446700,-500.0,0.00016773,2]
[379181801,1755179446709,-500.0,0.00016773,2]
[379181803,1755179446721,-151.0,0.000168,2]
[379181805,1755179446730,-151.0,0.000168,2]
[379181807,1755179446739,-286.0,0.00016885,2]
[379181809,1755179446748,-151.0,0.000169,2]
[379181811,1755179446758,-151.0,0.000169,2]
[379181813,1755179446767,-173.39772058,0.000169,2]
[379181815,1755179446776,-528.19044044,0.00016912,2]
[379181817,1755179446786,-160.0,0.00016912,2]
[379181819,1755179446795,-160.0,0.00016917,2]
[379181821,1755179446804,-160.0,0.00016917,2]
[379181823,1755179446814,-160.0,0.00016917,2]
[379181825,1755179446823,-232.05637125,0.00016917,2]
[379181827,1755179446832,-160.0,0.00016917,2]
[379181829,1755179446842,-417.15472785,0.00016917,2]
[379181831,1755179446851,-160.0,0.00016917,2]
[379181833,1755179446861,-461.9529908,0.00016917,2]
[379181835,1755179446871,-160.0,0.00016917,2]
[379181837,1755179446881,-843.37884167,0.00016917,2]
[379181839,1755179446890,-160.0,0.00016917,2]
[379181841,1755179446900,-215.59581046,0.00016917,2]
[379181843,1755179446909,-500.0,0.00016973,2]
[379181845,1755179446918,-500.0,0.00016973,2]
[379181847,1755179446927,-500.0,0.00016973,2]
[379181849,1755179446936,-500.0,0.00016973,2]
[379181851,1755179446945,-500.0,0.00016973,2]
[379181853,1755179446955,-500.0,0.00016973,2]
[379181855,1755179446964,-500.0,0.00016973,2]
[379181857,1755179446973,-349.78746667,0.00016973,2]
[379181859,1755179446983,-500.0,0.00016973,2]
[379181861,1755179446993,-500.0,0.00016973,2]
[379181863,1755179447002,-500.0,0.00016973,2]
[379181865,1755179447012,-500.0,0.00016973,2]
[379181867,1755179447022,-500.0,0.00016973,2]
[379181869,1755179447032,-500.0,0.00016973,2]
[379181871,1755179447041,-500.0,0.00016973,2]
[379181873,1755179447051,-502.95669463,0.00016973,2]
[379181875,1755179447061,-500.0,0.00016973,2]
[379181877,1755179447070,-500.0,0.00016973,2]
[379181879,1755179447080,-502.82370544,0.00016973,2]
[379181881,1755179447089,-500.0,0.00016973,2]
[379181883,1755179447099,-154.50463477,0.00016973,2]
[379181885,1755179447108,-323.01291479,0.00016973,2]
[379181887,1755179447117,-500.0,0.00016973,2]
[379181889,1755179447128,-500.0,0.00016973,2]
[379181891,1755179447137,-433.30891369,0.00016973,2]
[379181893,1755179447147,-500.0,0.00016973,2]
[379181895,1755179447156,-500.0,0.00016973,2]
[379181897,1755179447165,-500.0,0.00016973,2]
[379181899,1755179447175,-500.45548213,0.00016973,2]
[379181901,1755179447184,-500.0,0.00016973,2]
[379181903,1755179447193,-500.0,0.00016973,2]
[379181905,1755179447203,-500.0,0.00016973,2]
[379181906,1755179447213,-500.0,0.00016973,2]
[379181908,1755179447222,-500.0,0.00016973,2]
[379181910,1755179447231,-502.07243738,0.00016973,2]
[379181911,1755179447242,-500.0,0.00016973,2]
[379181912,1755179447251,-168.0,0.00016984,2]
[379181913,1755179447260,-516.532,0.00016984,2]
[379181914,1755179447269,-4081.37101271,0.00016986,2]
[379181915,1755179447279,-151.0,0.00016986,2]
[379181916,1755179447292,-151.0,0.00016986,2]
[379181917,1755179447301,-151.0,0.00016986,2]
[379181918,1755179447311,-151.0,0.00016986,2]
[379181919,1755179447320,-151.0,0.00016986,2]
[379181920,1755179447330,-151.0,0.00016986,2]
[379181921,1755179447340,-291.614906,0.00016986,2]
[379181922,1755179447349,-151.0,0.00016986,2]
[379181923,1755179447359,-460.0,0.00016986,2]
[379181925,1755179447369,-460.0,0.00016986,2]
[379181927,1755179447379,-460.0,0.00016986,2]
[379181929,1755179447390,-460.0,0.00016986,2]
[379181931,1755179447399,-460.0,0.00016986,2]
[379181933,1755179447409,-460.0,0.00016986,2]
[379181935,1755179447419,-460.0,0.00016986,2]
[379181937,1755179447429,-460.0,0.00016986,2]
[379181939,1755179447438,-460.0,0.00016986,2]
[379181941,1755179447448,-460.0,0.00016986,2]
[379181943,1755179447457,-460.0,0.00016986,2]
[379181945,1755179447468,-574.21,0.00016986,2]
[379181947,1755179447477,-460.0,0.00016986,2]
[379181949,1755179447487,-460.0,0.00016986,2]
[379181951,1755179447496,-460.0,0.00016986,2]
[379181953,1755179447505,-661.51,0.00016986,2]
[379181955,1755179447515,-544.99441321,0.00016986,2]
[379181957,1755179447524,-460.0,0.00016986,2]
[379181959,1755179447533,-460.0,0.00016986,2]
[379181961,1755179447543,-460.0,0.00016986,2]
[379181963,1755179447552,-471.61,0.00016986,2]
[379181965,1755179447562,-460.0,0.00016986,2]
[379181967,1755179447571,-460.0,0.00016986,2]
[379181969,1755179447580,-185.42313174,0.00016986,2]
[379181971,1755179447589,-460.0,0.00016986,2]
[379181973,1755179447599,-460.0,0.00016986,2]
[379181975,1755179447608,-610.72,0.00016986,2]
[379181977,1755179447617,-460.0,0.00016986,2]
[379181979,1755179447627,-494.71,0.00016986,2]
[379181985,1755179447672,-460.0,0.00016986,2]
[379181987,1755179447682,-460.0,0.00016986,2]
[379181989,1755179447691,-645.09,0.00016986,2]
[379181991,1755179447701,-460.0,0.00016986,2]
[379181993,1755179447710,-460.0,0.00016986,2]
[379181994,1755179447722,-460.0,0.00016986,2]
[379181996,1755179447731,-522.64,0.00016986,2]
[379181998,1755179447741,-460.0,0.00016986,2]
[379182000,1755179447750,-460.0,0.00016986,2]
[379182002,1755179447760,-589.17,0.00016986,2]
[379182004,1755179447769,-303.3098316,0.00016986,2]
[379182006,1755179447779,-460.0,0.00016986,2]
[379182008,1755179447788,-460.0,0.00016986,2]
[379182010,1755179447798,-460.0,0.00016986,2]
[379182012,1755179447807,-460.0,0.00016986,2]
[379182014,1755179447816,-465.2283803,0.00016986,2]
[379182016,1755179447826,-606.71,0.00016986,2]
[379182018,1755179447835,-460.0,0.00016986,2]
[379182020,1755179447844,-460.0,0.00016986,2]
[379182022,1755179447853,-460.0,0.00016986,2]
[379182024,1755179447863,-460.0,0.00016986,2]
[379182026,1755179447872,-460.0,0.00016986,2]
[379182028,1755179447881,-460.0,0.00016986,2]
[379182030,1755179447890,-676.28,0.00016986,2]
[379182032,1755179447899,-535.93224199,0.00016986,2]
[379182034,1755179447909,-460.0,0.00016986,2]
[379182036,1755179447917,-460.0,0.00016986,2]
[379182038,1755179447927,-460.0,0.00016986,2]
[379182040,1755179447936,-497.89,0.00016986,2]
[379182042,1755179447946,-462.17522799,0.00016986,2]
[379182044,1755179447955,-460.0,0.00016986,2]
[379182046,1755179447969,-460.0,0.00016986,2]
[379182048,1755179447978,-460.0,0.00016986,2]
[379182050,1755179447987,-460.0,0.00016986,2]
[379182052,1755179447997,-1396.54,0.00016986,2]
[379182054,1755179448006,-460.0,0.00016986,2]
[379182056,1755179448015,-460.0,0.00016986,2]
[379182058,1755179448025,-460.0,0.00016986,2]
[379182060,1755179448035,-460.0,0.00016986,2]
[379182062,1755179448044,-460.0,0.00016986,2]
[379182064,1755179448054,-1107.5,0.00016986,2]
[379182066,1755179448064,-581.94,0.00016986,2]
[379182067,1755179448073,-460.0,0.00016986,2]
[379182069,1755179448082,-531.71,0.00016986,2]
[379182071,1755179448092,-460.0,0.00016986,2]
[379182073,1755179448101,-460.0,0.00016986,2]
[379182075,1755179448110,-460.0,0.00016986,2]
[379182077,1755179448119,-460.0,0.00016986,2]
[379182079,1755179448128,-460.0,0.00016986,2]
[379182081,1755179448138,-712.2,0.00016986,2]
[379182083,1755179448148,-460.0,0.00016986,2]
[379182084,1755179448157,-1014.23,0.00016986,2]
[379182086,1755179448166,-505.33,0.00016986,2]
[379182088,1755179448176,-460.0,0.00016986,2]
[379182090,1755179448186,-460.0,0.00016986,2]
[379182092,1755179448196,-460.0,0.00016986,2]
[379182094,1755179448206,-460.0,0.00016986,2]
[379182096,1755179448217,-460.0,0.00016986,2]
[379182098,1755179448227,-460.0,0.00016986,2]
[379182100,1755179448236,-460.0,0.00016986,2]
[379182102,1755179448245,-460.0,0.00016986,2]
[379182104,1755179448255,-552.87,0.00016986,2]
[379182106,1755179448264,-460.0,0.00016986,2]
[379182107,1755179448273,-460.0,0.00016986,2]
[379182109,1755179448283,-185.810107,0.00016986,2]
[379182111,1755179448296,-460.0,0.00016986,2]
[379182113,1755179448305,-460.0,0.00016986,2]
[379182115,1755179448315,-185.810107,0.00016986,2]
[379182117,1755179448326,-460.0,0.00016986,2]
[379182119,1755179448336,-788.61,0.00016986,2]
[379182121,1755179448346,-460.0,0.00016986,2]
[379182123,1755179448356,-1016.69,0.00016986,2]
[379182125,1755179448370,-303.27569574,0.00016986,2]
[379182127,1755179448380,-731.02,0.00016986,2]
[379182129,1755179448390,-460.0,0.00016986,2]
[379182131,1755179448400,-460.0,0.00016986,2]
[379182133,1755179448410,-460.0,0.00016986,2]
[379182134,1755179448421,-460.0,0.00016986,2]
[379182136,1755179448430,-460.0,0.00016986,2]
[379182138,1755179448439,-151.0,0.00016986,2]
[379182140,1755179448449,-460.0,0.00016986,2]
[379182142,1755179448458,-604.84,0.00016986,2]
[379182144,1755179448470,-460.0,0.00016986,2]
[379182146,1755179448479,-465.35305546,0.00016986,2]
[379182148,1755179448489,-514.64,0.00016986,2]
[379182150,1755179448499,-460.0,0.00016986,2]
[379182151,1755179448509,-600.13,0.00016986,2]
[379182153,1755179448519,-460.0,0.00016986,2]
[379182155,1755179448529,-460.0,0.00016986,2]
[379182157,1755179448539,-460.0,0.00016986,2]
[379182159,1755179448549,-463.10931404,0.00016986,2]
[379182161,1755179448558,-944.47,0.00016986,2]
[379182163,1755179448567,-460.0,0.00016986,2]
[379182165,1755179448576,-716.62,0.00016986,2]
[379182167,1755179448585,-815.41,0.00016986,2]
[379182169,1755179448594,-667.61,0.00016986,2]
[379182171,1755179448603,-460.0,0.00016986,2]
[379182173,1755179448612,-460.0,0.00016986,2]
[379182175,1755179448621,-460.0,0.00016986,2]
[379182176,1755179448630,-216.893172,0.00016986,2]
[379182178,1755179448639,-460.0,0.00016986,2]
[379182180,1755179448648,-460.0,0.00016986,2]
[379182182,1755179448657,-216.893172,0.00016986,2]
[379182184,1755179448666,-1296.54,0.00016986,2]
[379182186,1755179448675,-460.0,0.00016986,2]
[379182188,1755179448684,-538.17,0.00016986,2]
[379182190,1755179448694,-2162.83,0.00016986,2]
[379182192,1755179448702,-670.34,0.00016986,2]
[379182194,1755179448714,-460.0,0.00016986,2]
[379182196,1755179448723,-227.23214898,0.00016986,2]
[379182198,1755179448732,-460.0,0.00016986,2]
[379182199,1755179448742,-476.50718304,0.00016986,2]
[379182201,1755179448751,-460.0,0.00016986,2]
[379182203,1755179448761,-460.0,0.00016986,2]
[379182205,1755179448771,-462.79101781,0.00016986,2]
[379182207,1755179448781,-578.44,0.00016986,2]
[379182209,1755179448791,-460.0,0.00016986,2]
[379182211,1755179448800,-460.0,0.00016986,2]
[379182213,1755179448810,-151.0,0.00016986,2]
[379182215,1755179448819,-460.0,0.00016986,2]
[379182217,1755179448828,-460.0,0.00016986,2]
[379182219,1755179448838,-543.42,0.00016986,2]
[379182221,1755179448847,-460.0,0.00016986,2]
[379182222,1755179448856,-1644.5,0.00016986,2]
[379182224,1755179448866,-460.0,0.00016986,2]
[379182226,1755179448876,-460.0,0.00016986,2]
[379182228,1755179448885,-465.68542733,0.00016986,2]
[379182230,1755179448895,-3821.76,0.00016986,2]
[379182232,1755179448904,-460.0,0.00016986,2]
[379182234,1755179448914,-460.0,0.00016986,2]
[379182236,1755179448924,-1092.21,0.00016986,2]
[379182238,1755179448935,-460.0,0.00016986,2]
[379182240,1755179448945,-460.0,0.00016986,2]
[379182242,1755179448954,-1289.89,0.00016986,2]
[379182243,1755179448964,-3708.02,0.00016986,2]
[379182245,1755179448974,-460.0,0.00016986,2]
[379182247,1755179448984,-460.0,0.00016986,2]
[379182249,1755179448994,-557.33,0.00016986,2]
[379182251,1755179449004,-1733.53,0.00016986,2]
[379182253,1755179449014,-711.56,0.00016986,2]
[379182255,1755179449024,-460.0,0.00016986,2]
[379182257,1755179449033,-460.0,0.00016986,2]
[379182259,1755179449043,-616.97,0.00016986,2]
[379182261,1755179449054,-703.37,0.00016986,2]
[379182263,1755179449063,-460.0,0.00016986,2]
[379182265,1755179449073,-460.0,0.00016986,2]
[379182267,1755179449083,-460.0,0.00016986,2]
[379182269,1755179449093,-1036.4,0.00016986,2]
[379182271,1755179449103,-760.15,0.00016986,2]
[379182273,1755179449112,-777.29,0.00016986,2]
[379182275,1755179449123,-463.31466556,0.00016986,2]
[379182277,1755179449133,-1364.81,0.00016986,2]
[379182279,1755179449143,-460.0,0.00016986,2]
[379182281,1755179449154,-460.0,0.00016986,2]
[379182283,1755179449163,-460.0,0.00016986,2]
[379182284,1755179449174,-2417.62,0.00016986,2]
[379182286,1755179449184,-1679.39,0.00016986,2]
[379182288,1755179449194,-460.0,0.00016986,2]
[379182290,1755179449204,-815.53,0.00016986,2]
[379182292,1755179449214,-690.63,0.00016986,2]
[379182294,1755179449223,-460.0,0.00016986,2]
[379182296,1755179449233,-466.2,0.00016986,2]
[379182298,1755179449243,-151.0,0.00016986,2]
[379182300,1755179449252,-460.0,0.00016986,2]
[379182302,1755179449262,-460.0,0.00016986,2]
[379182304,1755179449271,-1216.08,0.00016986,2]
[379182306,1755179449285,-460.0,0.00016986,2]
[379182308,1755179449295,-592.34,0.00016986,2]
[379182309,1755179449305,-460.0,0.00016986,2]
[379182311,1755179449314,-669.09,0.00016986,2]
[379182313,1755179449325,-460.0,0.00016986,2]
[379182315,1755179449335,-460.0,0.00016986,2]
[379182317,1755179449345,-6832.2,0.00016986,2]
[379182319,1755179449354,-460.0,0.00016986,2]
[379182321,1755179449366,-460.0,0.00016986,2]
[379182323,1755179449376,-460.0,0.00016986,2]
[379182325,1755179449386,-476.74840796,0.00016986,2]
[379182327,1755179449396,-2094.75,0.00016986,2]
[379182329,1755179449405,-460.0,0.00016986,2]
[379182331,1755179449416,-460.0,0.00016986,2]
[379182332,1755179449427,-2468.85,0.00016986,2]
[379182334,1755179449436,-460.0,0.00016986,2]
[379182336,1755179449446,-460.0,0.00016986,2]
[379182338,1755179449456,-460.0,0.00016986,2]
[379182340,1755179449467,-622.8,0.00016986,2]
[379182342,1755179449477,-460.0,0.00016986,2]
[379182344,1755179449487,-460.0,0.00016986,2]
[379182346,1755179449496,-1322.93,0.00016986,2]
[379182348,1755179449507,-460.0,0.00016986,2]
[379182350,1755179449516,-460.0,0.00016986,2]
[379182352,1755179449526,-460.0,0.00016986,2]
[379182353,1755179449535,-600.73,0.00016986,2]
[379182355,1755179449544,-972.08,0.00016986,2]
[379182357,1755179449555,-460.0,0.00016986,2]
[379182359,1755179449564,-460.0,0.00016986,2]
[379182361,1755179449574,-10816.98,0.00016986,2]
[379182363,1755179449584,-460.0,0.00016986,2]
[379182365,1755179449595,-460.0,0.00016986,2]
[379182367,1755179449604,-460.0,0.00016986,2]
[379182369,1755179449614,-6185.43,0.00016986,2]
[379182371,1755179449623,-460.0,0.00016986,2]
[379182373,1755179449633,-460.0,0.00016986,2]
[379182375,1755179449642,-467.0359992,0.00016986,2]
[379182376,1755179449651,-460.0,0.00016986,2]
[379182377,1755179449660,-2928.93,0.00016986,2]
[379182378,1755179449668,-151.0,0.00016986,2]
[379182379,1755179449677,-460.0,0.00016986,2]
[379182380,1755179449686,-460.0,0.00016986,2]
[379182381,1755179449695,-460.0,0.00016986,2]
[379182382,1755179449704,-460.0,0.00016986,2]
[379182383,1755179449715,-3749.49,0.00016986,2]
[379182384,1755179449724,-766.24,0.00016986,2]
[379182385,1755179449733,-1261.39,0.00016986,2]
[379182386,1755179449742,-2505.67,0.00016986,2]
[379182387,1755179449751,-469.88,0.00016986,2]
[379182388,1755179449761,-460.0,0.00016986,2]
[379182389,1755179449770,-460.0,0.00016986,2]
[379182390,1755179449779,-151.0,0.00016986,2]
[379182391,1755179449788,-151.0,0.00016986,2]
[379182392,1755179449798,-460.0,0.00016986,2]
[379182393,1755179449807,-460.0,0.00016986,2]
[379182394,1755179449817,-460.0,0.00016986,2]
[379182395,1755179449826,-586.75,0.00016986,2]
[379182396,1755179449836,-151.0,0.00016986,2]
[379182397,1755179449846,-151.0,0.00016986,2]
[379182398,1755179449856,-1867.94,0.00016986,2]
[379182399,1755179449866,-1231.71,0.00016986,2]
[379182400,1755179449876,-854.23,0.00016986,2]
[379182401,1755179449885,-460.0,0.00016986,2]
[379182402,1755179449895,-460.0,0.00016986,2]
[379182403,1755179449904,-460.0,0.00016986,2]
[379182404,1755179449914,-460.0,0.00016986,2]
[379182405,1755179449923,-697.12,0.00016986,2]
[379182406,1755179449932,-675.83,0.00016986,2]
[379182407,1755179449942,-776.68,0.00016986,2]
[379182408,1755179449951,-779.93,0.00016986,2]
[379182409,1755179449961,-1515.13,0.00016986,2]
[379182410,1755179449972,-460.0,0.00016986,2]
[379182411,1755179449981,-460.0,0.00016986,2]
[379182412,1755179449991,-460.0,0.00016986,2]
[379182413,1755179450000,-1326.43,0.00016986,2]
[379182414,1755179450009,-462.05535552,0.00016986,2]
[379182415,1755179450019,-460.0,0.00016986,2]
[379182416,1755179450028,-460.0,0.00016986,2]
[379182417,1755179450038,-858.48,0.00016986,2]
[379182418,1755179450047,-2349.9,0.00016986,2]
[379182419,1755179450056,-460.0,0.00016986,2]
[379182420,1755179450066,-1153.66,0.00016986,2]
[379182421,1755179450075,-460.0,0.00016986,2]
[379182422,1755179450085,-460.0,0.00016986,2]
[379182424,1755179450095,-460.0,0.00016986,2]
[379182426,1755179450104,-1069.76,0.00016986,2]
[379182428,1755179450114,-585.36,0.00016986,2]
[379182430,1755179450124,-984.58,0.00016986,2]
[379182433,1755179450134,-460.0,0.00016986,2]
[379182434,1755179450144,-460.0,0.00016986,2]
[379182436,1755179450154,-460.0,0.00016986,2]
[379182439,1755179450163,-460.0,0.00016986,2]
[379182440,1755179450173,-881.59,0.00016986,2]
[379182443,1755179450183,-1138.35,0.00016986,2]
[379182444,1755179450193,-460.0,0.00016986,2]
[379182447,1755179450203,-813.73,0.00016986,2]
[379182449,1755179450216,-460.0,0.00016986,2]
[379182451,1755179450226,-36167.19247501,0.00017,2]
[379182453,1755179450236,-9000.0,0.00017,2]
[379182455,1755179450245,-151.0,0.00017,2]
[379182457,1755179450254,-151.0,0.00017,2]
[379182459,1755179450264,-151.0,0.00017,2]
[379182460,1755179450273,-501.43765191,0.00017021,2]
[379182462,1755179450283,-502.45269096,0.00017021,2]
[379182464,1755179450297,-503.11918519,0.00017021,2]
[379182466,1755179450306,-1000.0,0.00017021,2]
[379182468,1755179450316,-1000.0,0.00017021,2]
[379182470,1755179450327,-500.0,0.00017021,2]
[379182472,1755179450336,-1000.0,0.00017021,2]
[379182474,1755179450347,-1000.0,0.00017021,2]
[379182476,1755179450357,-1000.0,0.00017021,2]
[379182478,1755179450367,-1003.40631901,0.00017021,2]
[379182480,1755179450377,-1000.0,0.00017021,2]
[379182482,1755179450387,-1000.0,0.00017021,2]
[379182484,1755179450397,-151.0,0.00017021,2]
[379182486,1755179450407,-1454.657069,0.00017021,2]
[379182488,1755179450417,-1454.657069,0.00017021,2]
[379182490,1755179450427,-151.0,0.000171,2]
[379182492,1755179450437,-151.0,0.000171,2]
[379182494,1755179450447,-151.0,0.000172,2]
[379182496,1755179450456,-151.0,0.0001726,2]
[379182498,1755179450467,-151.0,0.0001726,2]
[379182500,1755179450476,-151.0,0.0001726,2]
[379182501,1755179450485,-151.0,0.0001726,2]
[379182503,1755179450495,-460.0,0.0001726,2]
[379182505,1755179450504,-460.0,0.0001726,2]
[379182507,1755179450514,-460.0,0.0001726,2]
[379182509,1755179450524,-460.0,0.0001726,2]
[379182511,1755179450534,-460.0,0.0001726,2]
[379182513,1755179450543,-460.0,0.0001726,2]
[379182515,1755179450552,-460.0,0.0001726,2]
[379182517,1755179450562,-460.0,0.0001726,2]
[379182519,1755179450571,-460.0,0.0001726,2]
[379182521,1755179450581,-460.0,0.0001726,2]
[379182523,1755179450590,-460.0,0.0001726,2]
[379182525,1755179450600,-364.594738,0.0001726,2]
[379182527,1755179450609,-364.594738,0.0001726,2]
[379182529,1755179450619,-574.21,0.0001726,2]
[379182531,1755179450628,-460.0,0.0001726,2]
[379182533,1755179450638,-460.0,0.0001726,2]
[379182535,1755179450647,-460.0,0.0001726,2]
[379182537,1755179450657,-661.51,0.0001726,2]
[379182539,1755179450667,-460.0,0.0001726,2]
[379182541,1755179450676,-460.0,0.0001726,2]
[379182542,1755179450686,-471.61,0.0001726,2]
[379182544,1755179450696,-460.0,0.0001726,2]
[379182546,1755179450705,-610.72,0.0001726,2]
[379182548,1755179450716,-494.71,0.0001726,2]
[379182550,1755179450726,-460.0,0.0001726,2]
[379182552,1755179450735,-645.09,0.0001726,2]
[379182554,1755179450745,-460.0,0.0001726,2]
[379182556,1755179450755,-460.0,0.0001726,2]
[379182558,1755179450765,-460.0,0.0001726,2]
[379182560,1755179450774,-460.0,0.0001726,2]
[379182562,1755179450783,-522.64,0.0001726,2]
[379182564,1755179450793,-460.0,0.0001726,2]
[379182566,1755179450803,-460.0,0.0001726,2]
[379182568,1755179450812,-589.17,0.0001726,2]
[379182570,1755179450821,-460.0,0.0001726,2]
[379182572,1755179450832,-460.0,0.0001726,2]
[379182574,1755179450841,-276.63237301,0.0001726,2]
[379182576,1755179450851,-606.71,0.0001726,2]
[379182578,1755179450860,-460.0,0.0001726,2]
[379182580,1755179450870,-460.0,0.0001726,2]
[379182582,1755179450879,-460.0,0.0001726,2]
[379182584,1755179450889,-269.67399361,0.0001726,2]
[379182586,1755179450899,-460.0,0.0001726,2]
[379182588,1755179450909,-460.0,0.0001726,2]
[379182590,1755179450919,-676.28,0.0001726,2]
[379182592,1755179450928,-460.0,0.0001726,2]
[379182594,1755179450939,-460.0,0.0001726,2]
[379182595,1755179450949,-462.35695127,0.0001726,2]
[379182598,1755179450961,-497.89,0.0001726,2]
[379182599,1755179450972,-460.0,0.0001726,2]
[379182601,1755179450982,-460.0,0.0001726,2]
[379182603,1755179450992,-1396.54,0.0001726,2]
[379182605,1755179451002,-460.0,0.0001726,2]
[379182607,1755179451012,-460.0,0.0001726,2]
[379182609,1755179451021,-471.17272675,0.0001726,2]
[379182611,1755179451032,-460.0,0.0001726,2]
[379182613,1755179451043,-1107.5,0.0001726,2]
[379182615,1755179451053,-581.94,0.0001726,2]
[379182617,1755179451063,-460.0,0.0001726,2]
[379182619,1755179451074,-531.71,0.0001726,2]
[379182621,1755179451084,-460.0,0.0001726,2]
[379182623,1755179451094,-460.0,0.0001726,2]
[379182625,1755179451105,-463.1720089,0.0001726,2]
[379182627,1755179451115,-460.0,0.0001726,2]
[379182629,1755179451124,-712.2,0.0001726,2]
[379182631,1755179451133,-460.0,0.0001726,2]
[379182633,1755179451142,-1014.23,0.0001726,2]
[379182635,1755179451152,-505.33,0.0001726,2]
[379182637,1755179451161,-460.0,0.0001726,2]
[379182639,1755179451170,-460.0,0.0001726,2]
[379182640,1755179451179,-460.0,0.0001726,2]
[379182643,1755179451189,-460.0,0.0001726,2]
[379182644,1755179451199,-460.0,0.0001726,2]
[379182646,1755179451209,-460.0,0.0001726,2]
[379182648,1755179451223,-460.0,0.0001726,2]
[379182650,1755179451233,-460.0,0.0001726,2]
[379182652,1755179451243,-552.87,0.0001726,2]
[379182654,1755179451254,-460.0,0.0001726,2]